[Event "Dutch Meesterklasse 2024-25"]
[Site "Netherlands"]
[Date "2024.10.12"]
[Round "2.2"]
[White "Braun, Christian"]
[Black "Strating, Sybolt"]
[Result "1/2-1/2"]
[ECO "B10"]
[WhiteElo "2395"]
[BlackElo "2308"]
[Annotator "TA"]
[PlyCount "59"]
[EventDate "2024.09.21"]
[EventType "team-tourn"]
[EventCountry "NED"]
[SourceTitle "playchess.com"]
[Source "ChessBase"]
[SourceQuality "1"]
[TimeControl "40/5400+30:1800+30"]

{[%evp 14,59,2,2,0,-7,0,-22,-13,-42,9,0,0,0,0,0,0,0,0,0,0,0,0,0,35,33,118,0,12,0,59,0,29,-17,0,-37,-21,-38,-13,-37,-25,-32,-23,-26,0,-27,0,-29]} 1. e4 {[%emt 0:06:09]} c6 {[%emt 0:00:08]} 2. d3 {[%emt 0:00:18]} d5 {[%emt 0:00:16]} 3. Nd2 {[%emt 0:00:10]} g6 {[%emt 0:03:12]} 4. Ngf3 {[%emt 0:01:22]} Bg7 {[%emt 0:00:24]} 5. g3 {[%emt 0:00:10]} e5 {[%emt 0:04:41]} 6. Bg2 {[%emt 0:00:35]} Ne7 {[%emt 0:00:27]} 7. O-O {[%emt 0:00:32]} O-O {[%emt 0:00:29]} 8. c3 {[%emt 0:00:42]} a5 {[%emt 0:04:25]} 9. Re1 {[%emt 0:09:13]} Nd7 {[%emt 0:04:48]} 10. h4 {[%emt 0:03:07][%cal Bh2h4,Bh4h5,Bh5h6][%mdl 32]} Re8 {[%emt 0:12:21]} 11. h5 {[%emt 0:00:55]} Nf8 {[%emt 0:04:03]} (11... gxh5 $15 12. Nh4 Nf6) 12. exd5 {[%emt 0:04:56]} Nxd5 {[%emt 0:00:16]} 13. Nc4 {[%emt 0:00:34]} Bg4 {[%emt 0:08:02]} 14. h6 {[%emt 0:01:56]} (14. Ncxe5 $2 Bxe5 (14... gxh5 15. Nxg4 hxg4 16. Rxe8 $14) (14... Bxh5 15. g4 $16) 15. Qa4 Bxf3 (15... Bxh5 16. Rxe5 Bxf3 17. Rxe8 $14) 16. Bxf3 Qd6 $19) 14... Bf6 {[%emt 0:00:45]} 15. a4 {[%emt 0:02:49]} (15. Ncxe5 Rxe5 16. Rxe5 Bxe5 $17) 15... Qc7 {[%emt 0:01:27]} 16. Qc2 {[%emt 0:05:14]} Nd7 {[%emt 0:05:22]} 17. Ng5 {[%emt 0:02:02]} Bxg5 {[%emt 0:04:58]} 18. Bxg5 {[%emt 0:05:39]} f6 {[%emt 0:00:10]} 19. Bd2 {[%emt 0:02:15]} N7b6 {[%emt 0:07:45] [#]} (19... f5 $14) 20. Qb3 {[%emt 0:09:04]} ({White should play} 20. Nxa5 $1 $16 {Hoping for c4.} Be6 (20... Rxa5 $2 {loses.} 21. c4 $18) 21. c4) 20... Be6 {[%emt 0:02:02]} 21. Nxb6 {[%emt 0:04:33]} Nxb6 {[%emt 0:05:25]} (21... Qxb6 $11 22. Qa3 c5) 22. Qc2 {[%emt 0:02:59]} (22. c4 $14) 22... Nd5 {[%emt 0:01:36]} 23. Re2 {[%emt 0:36:46]} (23. b4 $142) 23... Rad8 {[%emt 0:03:45]} 24. Rae1 {[%emt 0:00:00]} Qf7 {[%emt 0:05:25]} 25. Bc1 {[%emt 0:00:00]} Ne7 {[%emt 0:02:55]} 26. Be3 {[%emt 0:00:00]} Bb3 {[%emt 0:01:32]} 27. Qb1 {[%emt 0:00:00]} Ba2 {[%emt 0:02:11]} 28. Qc2 {[%emt 0:00:00] [#] aiming for c4.} Bb3 {[%emt 0:00:28]} 29. Qb1 {[%emt 0:00:00]} Ba2 {[%emt 0:00:22]} 30. Qc2 {[%emt 0:00:00] Weighted Error Value: White=0.17 (very precise) /Black=0.22 (precise) .  Mistake:       	White=3     	Black=3      Inaccurate:     	White=2     	Black=2      OK:         	White=11    	Black=5} 1/2-1/2

[Event "Dutch Meesterklasse 2024-25"]
[Site "Netherlands"]
[Date "2024.10.12"]
[Round "2.2"]
[White "Palchuk, Andrii"]
[Black "Beerdsen, Thomas"]
[Result "1/2-1/2"]
[ECO "D23"]
[WhiteElo "2370"]
[BlackElo "2505"]
[Annotator "TA"]
[PlyCount "61"]
[EventDate "2024.09.21"]
[EventType "team-tourn"]
[EventCountry "NED"]
[SourceTitle "playchess.com"]
[Source "ChessBase"]
[SourceQuality "1"]
[TimeControl "40/5400+30:1800+30"]

{[%evp 13,61,0,0,9,20,22,8,14,25,13,12,12,17,25,28,0,0,0,56,0,0,0,0,0,0,0,0,0,0,-3,-11,-12,0,0,0,0,0,0,0,0,0,0,0,0,1,0,0,0,5,0]} 1. d4 {[%emt 0:15:01]} d5 {[%emt 0:02:32]} 2. c4 {[%emt 0:00:17]} c6 {[%emt 0:00:07]} 3. Nf3 {[%emt 0:00:32]} Nf6 {[%emt 0:00:11]} 4. Qb3 {[%emt 0:00:52]} dxc4 {[%emt 0:01:03]} 5. Qxc4 {[%emt 0:00:06]} Bf5 {[%emt 0:00:22]} 6. g3 {[%emt 0:01:05]} e6 {[%emt 0:00:20]} 7. Bg2 {[%emt 0:00:19]} Be7 {[%emt 0:00:23]} 8. O-O {[%emt 0:00:07]} O-O {[%emt 0:00:09]} 9. e3 {[%emt 0:00:34]} c5 {[%emt 0:00:07]} 10. Nc3 {[%emt 0:05:53]} Nc6 {[%emt 0:00:16]} 11. Rd1 {[%emt 0:01:55]} Qa5 {[%emt 0:00:19]} 12. dxc5 {[%emt 0:07:13]} Qxc5 {[%emt 0:02:57]} 13. Qxc5 {[%emt 0:00:46]} Bxc5 {[%emt 0:00:06]} 14. Bd2 {[%emt 0:06:18]} Rfd8 {[%emt 0:06:14]} 15. Be1 {[%emt 0:01:55]} a6 {[%emt 0:15:27]} ({Better is} 15... h6 $11) 16. a3 {[%emt 0:02:51]} ({White should play} 16. Nh4 $14) 16... h6 $11 {[%emt 0:03:07] The position is equal.} 17. b4 {[%emt 0:10:18]} Be7 {[%emt 0:01:14]} 18. Rac1 {[%emt 0:01:39]} Rac8 {[%emt 0:03:16][%cal Ba8c8,Bc8d8,Bd8d3][%mdl 32]} 19. h3 {[%emt 0:07:29]} Ne4 {[%emt 0:02:52]} 20. Nxe4 {[%emt 0:01:01]} Bxe4 {[%emt 0:02:09]} 21. Nd2 {[%emt 0:05:38][%cal Bf3d2,Bd2b1,Bb1c3][%mdl 32]} Bxg2 {[%emt 0:01:34]} 22. Kxg2 {[%emt 0:00:06]} Rd3 {[%emt 0:02:36][%cal Oc8d8]} 23. Nb1 {[%emt 0:02:38]} Rcd8 {[%emt 0:08:59]} 24. Rxd3 {[%emt 0:00:10]} Rxd3 {[%emt 0:00:05]} 25. Bc3 {[%emt 0:01:10]} Bf6 {[%emt 0:00:57]} 26. Kf1 {[%emt 0:00:20]} Bxc3 {[%emt 0:00:18]} 27. Nxc3 {[%emt 0:00:44]} Rd2 {[%emt 0:04:46]} 28. Ne4 {[%emt 0:00:29]} Rd3 {[%emt 0:00:06]} 29. Nc3 {[%emt 0:01:35]} Rd2 {[%emt 0:00:18]} 30. Ne4 {[%emt 0:00:07]} Rd3 {[%emt 0:00:05]} 31. Nc3 {[%emt 0:00:19] An uneventful encounter.   Weighted Error Value: White=0.04 (flawless) /Black=0.05 (flawless) .  Mistake:       	White=1     	Black=1      Inaccurate:     	White=1     	---        OK:         	White=9     	Black=14} 1/2-1/2

[Event "Dutch Meesterklasse 2024-25"]
[Site "Netherlands"]
[Date "2024.10.12"]
[Round "2.3"]
[White "Lodici, Lorenzo"]
[Black "Labruyere, Roger"]
[Result "1-0"]
[ECO "E04"]
[WhiteElo "2575"]
[BlackElo "2286"]
[Annotator "TA"]
[PlyCount "63"]
[EventDate "2024.09.21"]
[EventType "team-tourn"]
[EventCountry "NED"]
[SourceTitle "playchess.com"]
[Source "ChessBase"]
[SourceQuality "1"]
[TimeControl "40/5400+30:1800+30"]

{[%evp 12,63,33,0,50,39,57,43,54,0,103,99,106,114,105,116,108,89,145,119,127,144,134,120,206,202,205,169,164,141,152,144,252,251,272,198,193,198,187,135,127,68,64,61,133,122,130,104,366,389,402,402,6199,5699]} 1. d4 {[%emt 0:06:38]} Nf6 {[%emt 0:00:01]} 2. c4 {[%emt 0:00:33]} e6 {[%emt 0:00:04]} 3. g3 {[%emt 0:01:07]} d5 {[%emt 0:00:54]} 4. Nf3 {[%emt 0:00:05]} dxc4 {[%emt 0:00:07]} 5. Bg2 {[%emt 0:00:18]} a6 {[%emt 0:00:04]} 6. O-O {[%emt 0:01:45]} Nc6 {[%emt 0:00:03]} 7. Nc3 {[%emt 0:04:36]} Bb4 {[%emt 0:10:18]} (7... Rb8 $11) 8. Ne5 $14 {[%emt 0:11:00]} O-O {[%emt 0:24:31]} 9. Qa4 {[%emt 0:12:31]} (9. Nxc4 Qxd4 10. Qb3 Be7 $11) 9... Nxe5 {[%emt 0:07:11] White is slightly better.} 10. Qxb4 {[%emt 0:07:58]} ({Better is} 10. dxe5 $14 Bxc3 11. bxc3) 10... a5 {[%emt 0:22:49]} (10... Qxd4 $11 {remains equal.} 11. Be3 Qd8) 11. Qb5 $1 $16 {[%emt 0:03:26]} Nc6 {[%emt 0:01:06]} 12. Rd1 {[%emt 0:02:43]} Ne8 {[%emt 0:10:53]} 13. Qxc4 {[%emt 0:02:31] White is much more active. The black rooks are passive.} Nd6 {[%emt 0:00:52]} 14. Qc5 {[%emt 0:01:03]} Bd7 {[%emt 0:02:58]} (14... Ne7 $142) 15. d5 {[%emt 0:04:35]} b6 {[%emt 0:05:45]} 16. Qe3 {[%emt 0:02:13]} Nb4 {[%emt 0:03:33]} 17. dxe6 {[%emt 0:01:02]} Bxe6 {[%emt 0:01:56]} (17... fxe6 $16 {is a better defense.} 18. Rb1 (18. Bxa8 Qxa8 19. Rb1 Qe8 $16) 18... Rc8) 18. Bxa8 $18 {[%emt 0:05:46]} Qxa8 {[%emt 0:00:44]} 19. Qf4 {[%emt 0:00:05]} Re8 {[%emt 0:01:44]} 20. f3 {[%emt 0:02:19]} Qc6 {[%emt 0:01:02] Prevents b3} 21. Be3 {[%emt 0:02:15]} Nc4 {[%emt 0:02:46] [#]} (21... Nb5 $16) 22. Bd4 $1 {[%emt 0:00:08]} Nc2 {[%emt 0:00:57]} 23. Qg5 {[%emt 0:03:51][%csl Gd4][%cal Rg5g7]} Nxd4 {[%emt 0:00:33]} 24. Rxd4 {[%emt 0:00:02]} Nxb2 {[%emt 0:00:36]} 25. Ne4 {[%emt 0:00:26]} (25. Rc1 $18 {aiming for Nd5.} h6 26. Qb5 (26. Nd5 Qxd5 27. Qxd5 Bxd5 $18) 26... Qxb5 27. Nxb5) 25... h6 $16 {[%emt 0:00:33]} 26. Qc1 {[%emt 0:07:19]} (26. Nf6+ $16 Kf8 27. Qd2) 26... Nc4 $14 {[%emt 0:00:01]} 27. a4 {[%emt 0:00:33]} Bd5 {[%emt 0:00:54] [#]} (27... f5 $14 28. Nd2 Ne5 (28... Qc5 29. Qc3 $16)) 28. Qc3 $1 $16 {[%emt 0:03:56]} f5 {[%emt 0:00:36]} 29. Rad1 {[%emt 0:00:29]} fxe4 $4 {[%emt 0:00:39][%mdl 8192]} (29... Be6 $16) 30. Rxd5 $18 {[%emt 0:00:08]} exf3 {[%emt 0:00:15]} 31. exf3 {[%emt 0:01:36]} Re1+ {[%emt 0:00:44]} (31... Ne5 $142 32. Qxc6 Nxc6) 32. Qxe1 {[%emt 0:00:10] Weighted Error Value: White=0.20 (precise) /Black=0.43.  Loses game:     	---       	Black=1      Mistake:       	White=3     	Black=6      OK:         	White=7     	Black=6      Best:        	White=4     	Black=2      Strong:       	White=2     	---} 1-0

[Event "Dutch Meesterklasse 2024-25"]
[Site "Netherlands"]
[Date "2024.10.12"]
[Round "2.3"]
[White "Van Gisbergen, Stan"]
[Black "Mainka, Alwin"]
[Result "1-0"]
[ECO "D85"]
[WhiteElo "2260"]
[BlackElo "2167"]
[Annotator "RC"]
[PlyCount "107"]
[EventDate "2024.09.21"]
[EventType "team-tourn"]
[EventCountry "NED"]
[SourceTitle "playchess.com"]
[Source "ChessBase"]
[SourceQuality "1"]
[TimeControl "40/5400+30:1800+30"]

1. d4 {[%emt 0:00:04]} Nf6 {[%emt 0:00:18]} 2. c4 {[%emt 0:00:05]} g6 {[%emt 0:00:07]} 3. Nc3 {[%emt 0:00:08]} d5 {[%emt 0:00:06]} 4. cxd5 {[%emt 0:00:16]} Nxd5 {[%emt 0:00:11]} 5. e4 {[%emt 0:00:09]} Nxc3 {[%emt 0:00:07]} 6. bxc3 {[%emt 0:00:06]} Bg7 {[%emt 0:00:07]} 7. Qa4+ {[%emt 0:00:20]} Nd7 {[%emt 0:06:46]} 8. Nf3 {[%emt 0:00:20]} O-O {[%emt 0:01:00]} 9. Be2 {[%emt 0:00:36]} c5 {[%emt 0:03:11]} 10. O-O {[%emt 0:01:26]} Qc7 {[%emt 0:03:02]} 11. Bg5 {[%emt 0:06:12]} h6 {[%emt 0:08:02]} 12. Bh4 {[%emt 0:08:42]} Nf6 {[%emt 0:13:22]} 13. Bd3 {[%emt 0:19:48]} Nh5 {[%emt 0:02:58]} 14. Rfe1 {[%emt 0:12:22]} Bd7 {[%emt 0:02:22]} 15. Qa3 {[%emt 0:02:08]} Bg4 {[%emt 0:01:05]} 16. e5 {[%emt 0:05:04]} Bxf3 {[%emt 0:04:10]} 17. gxf3 {[%emt 0:02:34]} Rfd8 {[%emt 0:03:45]} 18. Rac1 {[%emt 0:04:43]} b6 {[%emt 0:03:37]} 19. Bg3 {[%emt 0:01:32]} e6 {[%emt 0:01:27]} 20. Be4 {[%emt 0:01:08]} Rac8 {[%emt 0:00:09]} 21. Rcd1 {[%emt 0:00:55]} a5 {[%emt 0:04:17]} 22. f4 {[%emt 0:01:12]} cxd4 {[%emt 0:01:53]} 23. cxd4 {[%emt 0:00:19]} Bf8 {[%emt 0:00:06]} 24. Qf3 {[%emt 0:01:50]} Bb4 {[%emt 0:00:42]} 25. Re3 {[%emt 0:02:17]} Be7 {[%emt 0:02:13]} 26. d5 {[%emt 0:02:44]} exd5 {[%emt 0:00:44]} 27. Bxd5 {[%emt 0:00:13]} Qc2 {[%emt 0:02:59]} 28. Red3 {[%emt 0:01:05]} Ng7 {[%emt 0:01:09]} 29. Bb3 {[%emt 0:05:48]} Rxd3 {[%emt 0:03:26]} 30. Rxd3 {[%emt 0:00:16]} Qc5 {[%emt 0:01:33]} 31. Qg4 {[%emt 0:05:20]} Kf8 {[%emt 0:05:23]} 32. Bh4 {[%emt 0:00:32]} Nf5 {[%emt 0:00:42]} 33. Bxe7+ {[%emt 0:03:10]} Qxe7 {[%emt 0:00:24]} 34. Qd1 {[%emt 0:00:59]} Rc7 {[%emt 0:00:52]} 35. Rd8+ {[%emt 0:01:09]} Kg7 {[%emt 0:00:27]} 36. e6 {[%emt 0:02:17]} f6 {[%emt 0:06:02]} 37. Rd7 {[%emt 0:02:49]} Rxd7 {[%emt 0:00:09]} 38. exd7 {[%emt 0:00:19]} Nd6 {[%emt 0:01:40]} 39. Qd5 {[%emt 0:01:17]} Qf8 {[%emt 0:00:10]} 40. a4 {[%emt 0:05:44]} h5 {[%emt 0:02:24]} 41. Qe6 {[%emt 0:05:00]} Nb7 {[%emt 0:05:01]} 42. Qxb6 {[%emt 0:01:20]} Nd8 {[%emt 0:00:12]} 43. Qxa5 {[%emt 0:01:12]} Qe7 {[%emt 0:01:09]} 44. Qd5 {[%emt 0:00:40]} Kh6 {[%emt 0:00:06]} 45. a5 {[%emt 0:02:34]} h4 {[%emt 0:00:39]} 46. h3 {[%emt 0:00:38]} Qa3 {[%emt 0:01:43]} 47. Qg8 {[%emt 0:04:33]} Qc1+ {[%emt 0:00:12]} 48. Kg2 {[%emt 0:00:59]} Qxf4 {[%emt 0:00:36]} 49. Qd5 {[%emt 0:09:12]} f5 {[%emt 0:02:30]} 50. a6 {[%emt 0:02:21]} Qc7 {[%emt 0:00:44]} 51. Bd1 {[%emt 0:02:04]} Qa7 {[%emt 0:02:38]} 52. Qd6 {[%emt 0:01:24]} Qa8+ {[%emt 0:01:12]} 53. Bf3 {[%emt 0:00:12]} Qa7 {[%emt 0:00:05]} 54. Qf8+ {[%emt 0:00:21]} 1-0

[Event "Dutch Meesterklasse 2024-25"]
[Site "Netherlands"]
[Date "2024.10.12"]
[Round "2.4"]
[White "De Boer, Eelke"]
[Black "Kuipers, Stefan"]
[Result "1/2-1/2"]
[ECO "C41"]
[WhiteElo "2420"]
[BlackElo "2458"]
[Annotator "TA"]
[PlyCount "207"]
[EventDate "2024.09.21"]
[EventType "team-tourn"]
[EventCountry "NED"]
[SourceTitle "playchess.com"]
[Source "ChessBase"]
[SourceQuality "1"]
[TimeControl "40/5400+30:1800+30"]

{[%evp 97,207,-86,-86,-86,-86,-86,-86,-86,-86,-86,-86,-86,-86,-86,-86,-86,-86,-86,-46,-86,-86,-86,-46,-86,-46,-86,-86,-86,-86,-115,-115,-115,-115,-115,-115,-115,-115,-115,-46,-46,-46,-46,-46,-46,-46,-46,0,-46,-46,-46,-46,-46,-46,-46,0,-46,-46,-46,-46,-46,-46,-46,-46,-46,-46,-46,-46,-46,-46,-46,-46,-46,-46,-46,0,-46,-46,-46,-46,-46,-46,-46,-46,-46,-46,-46,-46,-46,0,-46,-46,-46,-46,-46,-46,-46,0,-46,-46,-46,-46,-46,-46,-46,-46,-46,-46,-46,-46,-47,-47,-47]} 1. e4 {[%emt 0:00:03]} d6 {[%emt 0:00:04]} 2. d4 {[%emt 0:00:11]} Nf6 {[%emt 0:00:04]} 3. Nc3 {[%emt 0:00:07]} e5 {[%emt 0:00:05]} 4. Nf3 {[%emt 0:00:20]} Nbd7 {[%emt 0:00:07]} 5. Bc4 {[%emt 0:00:14]} Be7 {[%emt 0:00:05]} 6. O-O {[%emt 0:00:10]} Nb6 {[%emt 0:04:46] C41: Philidor Defence.} 7. Be2 {[%emt 0:08:46]} exd4 {[%emt 0:02:00]} 8. Nxd4 {[%emt 0:00:09]} O-O {[%emt 0:01:36]} 9. Bf4 {[%emt 0:03:39]} Re8 {[%emt 0:03:13]} 10. Qd3 {[%emt 0:04:51]} Bf8 {[%emt 0:09:07]} 11. Rad1 {[%emt 0:02:28]} Nbd7 $146 {[%emt 0:04:26]} ({Predecessor:} 11... c6 12. Rfe1 d5 13. exd5 Nfxd5 14. Nxd5 Nxd5 15. Bg3 Qa5 16. a3 Bg4 17. h3 Bxe2 18. Rxe2 Rxe2 19. Qxe2 {1-0 Muzychuk,A (2460)-Mamedjarova,Z (2332) Stockholm SCT op (Women) 2008 (9)}) 12. Nb3 {[%emt 0:02:53]} b6 {[%emt 0:27:56]} 13. Rfe1 {[%emt 0:08:28]} Bb7 {[%emt 0:01:21]} 14. Bf1 {[%emt 0:01:36]} Ne5 {[%emt 0:01:20]} 15. Qd4 {[%emt 0:02:10]} c6 {[%emt 0:11:36]} 16. a4 {[%emt 0:09:35]} h6 {[%emt 0:02:00]} 17. h3 {[%emt 0:03:11]} Qc7 {[%emt 0:03:30]} 18. Qe3 {[%emt 0:12:13]} Rad8 {[%emt 0:02:15]} 19. Nd4 {[%emt 0:02:16]} Qc8 {[%emt 0:02:39]} 20. Qc1 {[%emt 0:10:11]} a6 {[%emt 0:04:37]} 21. Bg3 {[%emt 0:08:36]} c5 {[%emt 0:09:23]} 22. Nb3 {[%emt 0:00:16]} Qa8 {[%emt 0:02:18]} 23. f3 {[%emt 0:03:06]} Bc6 {[%emt 0:03:28]} 24. Nd2 {[%emt 0:07:28]} Qb7 {[%emt 0:02:06]} 25. Nc4 {[%emt 0:00:42]} Nxc4 {[%emt 0:00:48]} 26. Bxc4 {[%emt 0:00:06]} b5 {[%emt 0:01:43]} 27. axb5 {[%emt 0:00:17]} axb5 {[%emt 0:00:05]} 28. Bd5 {[%emt 0:00:11]} Nxd5 {[%emt 0:00:44]} 29. Nxd5 {[%emt 0:01:26]} Re6 30. b3 {[%emt 0:03:48]} b4 {[%emt 0:00:39]} 31. Qf4 {[%emt 0:01:38]} Be7 {[%emt 0:00:45]} 32. Bh4 {[%emt 0:03:14]} Bxh4 {[%emt 0:00:58]} 33. Qxh4 {[%emt 0:00:01]} Rde8 {[%emt 0:00:25]} 34. Ne3 {[%emt 0:01:31]} d5 {[%emt 0:00:47]} 35. Nxd5 {[%emt 0:01:21]} Bxd5 {[%emt 0:00:15]} 36. Rxd5 {[%emt 0:00:42]} Qxd5 {[%emt 0:00:13]} 37. exd5 {[%emt 0:00:02]} Rxe1+ {[%emt 0:00:08]} 38. Kh2 {[%emt 0:00:43]} Rd1 {[%emt 0:00:30]} 39. Qc4 {[%emt 0:00:32]} Rc8 {[%emt 0:00:30]} 40. c3 {[%emt 0:00:45]} bxc3 {[%emt 0:00:48]} 41. b4 {[%emt 0:07:32]} Rd4 {[%emt 0:06:53]} 42. Qxc3 {[%emt 0:00:11]} Rxb4 {[%emt 0:00:39]} 43. Qe5 {[%emt 0:00:55]} Rb7 {[%emt 0:01:56]} 44. Qf5 {[%emt 0:02:44]} Rd8 {[%emt 0:05:13]} 45. d6 {[%emt 0:00:27]} c4 {[%emt 0:01:33]} 46. Qc5 {[%emt 0:00:11]} Rbd7 {[%emt 0:00:52]} 47. Qxc4 {[%emt 0:00:08]} Rxd6 {[%emt 0:00:04]} 48. Qc7 {[%emt 0:01:57]} Rd2 {[%emt 0:00:43]} 49. h4 {[%emt 0:00:31]} h5 {[%emt 0:01:20]} 50. Kh3 {[%emt 0:00:37]} g6 {[%emt 0:01:18]} 51. Qe7 {[%emt 0:00:26]} Rc8 {[%emt 0:01:00]} 52. Qe5 {[%emt 0:01:26]} Rdd8 {[%emt 0:03:31]} 53. Qe7 {[%emt 0:03:07]} Re8 {[%emt 0:00:04]} 54. Qd7 {[%emt 0:01:58]} Rcd8 {[%emt 0:00:05]} 55. Qc7 {[%emt 0:00:40]} Rd1 {[%emt 0:00:37]} 56. Qc2 {[%emt 0:01:43]} Rh1+ {[%emt 0:00:38]} 57. Kg3 {[%emt 0:00:02]} Rg1 {[%emt 0:03:09]} 58. Qc5 {[%emt 0:00:45]} Ra1 {[%emt 0:00:32]} 59. Kh3 {[%emt 0:00:27]} Ra2 {[%emt 0:01:26]} 60. Qd5 {[%emt 0:00:28]} Rc2 {[%emt 0:00:35]} 61. Qd3 {[%emt 0:00:27]} Rc5 {[%emt 0:01:23]} 62. Qd7 {[%emt 0:00:30]} Ra8 {[%emt 0:00:33]} 63. Qd2 {[%emt 0:01:01]} Rc4 {[%emt 0:00:29]} 64. Qe2 {[%emt 0:02:51]} Raa4 {[%emt 0:00:36]} 65. Qe8+ {[%emt 0:00:09]} Kg7 {[%emt 0:00:04]} 66. Qe5+ {[%emt 0:00:07]} Kh7 {[%emt 0:00:10]} 67. g3 {[%emt 0:00:15] [#]} Rc8 {[%emt 0:01:21]} ({Black should play} 67... Ra7 $1 $17) 68. f4 $1 $15 {[%emt 0:03:39]} Ra7 {[%emt 0:07:03]} 69. f5 {[%emt 0:00:10]} Rc2 {[%emt 0:00:26]} 70. Qf6 {[%emt 0:03:10]} Rd2 {[%emt 0:00:34]} 71. Qe5 {[%emt 0:01:16]} Rc2 {[%emt 0:00:39]} 72. Qf6 $1 {[%emt 0:00:07]} Re2 {[%emt 0:00:06]} 73. fxg6+ {[%emt 0:01:18]} fxg6 {[%emt 0:00:01]} 74. Qf3 {[%emt 0:00:16]} Rc2 {[%emt 0:00:22]} 75. Qf6 {[%emt 0:00:43]} Re2 {[%emt 0:00:33]} 76. Qf3 $1 {[%emt 0:00:14]} Re5 {[%emt 0:00:06]} 77. Qf6 {[%emt 0:00:41]} Rf5 {[%emt 0:00:04]} 78. Qd4 {[%emt 0:00:50]} Rb7 {[%emt 0:00:33]} 79. Kg2 {[%emt 0:00:37]} Rc7 {[%emt 0:00:12]} 80. Qd2 {[%emt 0:01:16]} Re7 {[%emt 0:00:21]} 81. Qc2 {[%emt 0:00:41]} Rff7 {[%emt 0:00:40]} 82. Qd2 {[%emt 0:00:12]} Re4 {[%emt 0:00:36]} 83. Qd3 {[%emt 0:01:01]} Rg4 {[%emt 0:00:27]} 84. Qe3 {[%emt 0:00:15]} Rb4 {[%emt 0:00:34]} 85. Qc3 {[%emt 0:00:27]} Re4 {[%emt 0:00:48]} 86. Qd3 $1 {[%emt 0:00:16]} Re6 {[%emt 0:00:14]} 87. Qd2 {[%emt 0:00:27]} Rb6 {[%emt 0:00:52]} 88. Qc2 {[%emt 0:00:33]} Rfb7 {[%emt 0:00:05]} 89. Qe4 {[%emt 0:01:24]} Rb2+ {[%emt 0:00:06]} 90. Kh3 {[%emt 0:00:39]} Rf7 {[%emt 0:00:17]} 91. Qe3 {[%emt 0:00:20]} Rbf2 {[%emt 0:00:27]} 92. Qe4 {[%emt 0:00:29]} Rb2 {[%emt 0:02:20]} 93. Qe3 $1 {[%emt 0:00:16]} Rbb7 {[%emt 0:00:05]} 94. Kg2 {[%emt 0:01:00]} Rfe7 {[%emt 0:00:05]} 95. Qd2 {[%emt 0:01:27]} Red7 {[%emt 0:00:06]} 96. Qe3 {[%emt 0:00:12]} Re7 {[%emt 0:00:11]} 97. Qd2 {[%emt 0:00:07]} Rb1 {[%emt 0:00:03]} 98. Qf2 {[%emt 0:00:40]} Reb7 {[%emt 0:00:17]} 99. Kh3 {[%emt 0:00:26]} Rh1+ {[%emt 0:00:04]} 100. Kg2 {[%emt 0:00:08]} Rd1 {[%emt 0:00:04]} 101. Qe2 {[%emt 0:00:52]} Rc1 {[%emt 0:00:19]} 102. Kh3 {[%emt 0:00:47]} Rbc7 {[%emt 0:00:50]} 103. Qe3 {[%emt 0:00:56]} Rd1 {[%emt 0:01:09]} 104. Qe2 {[%emt 0:00:18]} 1/2-1/2